[Event "Late-Titled-Tuesday-Blitz-March-12-2024"]
[Site "Chess.com"]
[Date "2024.03.12"]
[Round "3"]
[White "K_A_S_T_O_R"]
[Black "Roedor"]
[Result "1-0"]
[WhiteElo "2859"]
[BlackElo "2285"]
[TimeControl "180+1"]
[EndTime "14:25:33 PDT"]
[Termination "K_A_S_T_O_R won on time"]

1. e4 {[%clk 0:03:00.9]} 1... e5 {[%clk 0:02:59.6]} 2. Nf3 {[%clk 0:03:00.5]}
2... Nc6 {[%clk 0:03:00]} 3. Bb5 {[%clk 0:03:00.3]} 3... Nf6 {[%clk 0:02:59.9]}
4. d3 {[%clk 0:03:00.7]} 4... Bc5 {[%clk 0:02:59.5]} 5. Bxc6 {[%clk 0:02:59.7]}
5... dxc6 {[%clk 0:02:59.5]} 6. Be3 {[%clk 0:02:59.9]} 6... Qe7 {[%clk
0:02:38.4]} 7. h3 {[%clk 0:02:57.4]} 7... Nd7 {[%clk 0:02:34.7]} 8. Nbd2 {[%clk
0:02:56.4]} 8... Nf8 {[%clk 0:02:30]} 9. O-O {[%clk 0:02:37.9]} 9... Bd6 {[%clk
0:02:25.6]} 10. d4 {[%clk 0:02:36.6]} 10... Ng6 {[%clk 0:02:24.8]} 11. Nc4
{[%clk 0:02:26.8]} 11... O-O {[%clk 0:02:15.7]} 12. Re1 {[%clk 0:02:24.7]} 12...
Re8 {[%clk 0:02:13.6]} 13. dxe5 {[%clk 0:02:22.6]} 13... Nxe5 {[%clk 0:02:13.1]}
14. Nfxe5 {[%clk 0:02:21.5]} 14... Bxe5 {[%clk 0:02:13.4]} 15. Nxe5 {[%clk
0:02:22.2]} 15... Qxe5 {[%clk 0:02:14]} 16. Bd4 {[%clk 0:02:22.6]} 16... Qe7
{[%clk 0:01:58.1]} 17. Qf3 {[%clk 0:02:20.5]} 17... Be6 {[%clk 0:01:54.4]} 18.
b3 {[%clk 0:02:18.2]} 18... Rad8 {[%clk 0:01:54.3]} 19. Bc3 {[%clk 0:02:18.1]}
19... f6 {[%clk 0:01:49.2]} 20. Qg3 {[%clk 0:02:15.8]} 20... c5 {[%clk 0:01:39]}
21. Re3 {[%clk 0:02:14.7]} 21... Rd7 {[%clk 0:01:37]} 22. Rae1 {[%clk
0:02:13.6]} 22... Red8 {[%clk 0:01:35.7]} 23. Rf3 {[%clk 0:02:08]} 23... Rd1
{[%clk 0:01:28.3]} 24. Rxd1 {[%clk 0:02:08.1]} 24... Rxd1+ {[%clk 0:01:29.2]}
25. Kh2 {[%clk 0:02:08.9]} 25... Kf8 {[%clk 0:00:19.2]} 26. Qh4 {[%clk
0:01:49.2]} 26... Bg8 {[%clk 0:00:13.3]} 27. e5 {[%clk 0:01:44]} 27... Bf7
{[%clk 0:00:01.6]} 28. exf6 {[%clk 0:01:42.5]} 28... gxf6 {[%clk 0:00:01.5]} 29.
Rxf6 {[%clk 0:01:42]} 1-0

[Event "Late-Titled-Tuesday-Blitz-March-12-2024"]
[Site "Chess.com"]
[Date "2024.03.12"]
[Round "3"]
[White "AlexeiShirov"]
[Black "As0nchess"]
[Result "1-0"]
[WhiteElo "2864"]
[BlackElo "2553"]
[TimeControl "180+1"]
[EndTime "14:25:41 PDT"]
[Termination "AlexeiShirov won on time"]

1. e4 {[%clk 0:03:00.9]} 1... c5 {[%clk 0:02:59]} 2. Nf3 {[%clk 0:02:59.8]} 2...
e6 {[%clk 0:02:59.4]} 3. d4 {[%clk 0:02:59.2]} 3... cxd4 {[%clk 0:03:00.2]} 4.
Nxd4 {[%clk 0:02:59.7]} 4... Nc6 {[%clk 0:03:00.7]} 5. Nc3 {[%clk 0:02:58.8]}
5... a6 {[%clk 0:03:01]} 6. Bf4 {[%clk 0:02:41.3]} 6... d6 {[%clk 0:03:00.2]} 7.
Nxc6 {[%clk 0:02:39.5]} 7... bxc6 {[%clk 0:03:00.1]} 8. Qd2 {[%clk 0:02:40]}
8... e5 {[%clk 0:02:49]} 9. Bg5 {[%clk 0:02:39.1]} 9... Qb6 {[%clk 0:02:34.7]}
10. Bc4 {[%clk 0:02:34.4]} 10... h6 {[%clk 0:02:31.4]} 11. Be3 {[%clk
0:02:28.6]} 11... Qc7 {[%clk 0:02:29.1]} 12. f4 {[%clk 0:02:25.6]} 12... Nf6
{[%clk 0:02:28.7]} 13. h3 {[%clk 0:02:18.3]} 13... Be7 {[%clk 0:02:26.3]} 14.
O-O-O {[%clk 0:02:15.3]} 14... a5 {[%clk 0:02:25]} 15. g4 {[%clk 0:02:14.3]}
15... Be6 {[%clk 0:02:07.9]} 16. Bxe6 {[%clk 0:02:06.5]} 16... fxe6 {[%clk
0:02:08.1]} 17. fxe5 {[%clk 0:02:04.5]} 17... dxe5 {[%clk 0:02:08.1]} 18. Qd3
{[%clk 0:02:04.2]} 18... Bb4 {[%clk 0:02:01.8]} 19. Qc4 {[%clk 0:01:56.9]} 19...
O-O {[%clk 0:01:57.1]} 20. Na4 {[%clk 0:01:51.1]} 20... Kh8 {[%clk 0:01:51.4]}
21. g5 {[%clk 0:01:33.7]} 21... hxg5 {[%clk 0:01:40.4]} 22. Rdg1 {[%clk
0:01:32.7]} 22... Qb7 {[%clk 0:01:16]} 23. Rxg5 {[%clk 0:01:31]} 23... Qb5
{[%clk 0:01:05.8]} 24. Qxb5 {[%clk 0:01:25.6]} 1-0

[Event "Late-Titled-Tuesday-Blitz-March-12-2024"]
[Site "Chess.com"]
[Date "2024.03.12"]
[Round "3"]
[White "carloseduar100"]
[Black "biostatistician"]
[Result "1-0"]
[WhiteElo "2320"]
[BlackElo "2508"]
[TimeControl "180+1"]
[EndTime "14:25:44 PDT"]
[Termination "carloseduar100 won on time"]

1. e4 {[%clk 0:02:59.3]} 1... e5 {[%clk 0:00:08.6]} 2. Nf3 {[%clk 0:02:57.3]}
2... Nc6 {[%clk 0:00:09.5]} 3. Nc3 {[%clk 0:02:57]} 3... Nf6 {[%clk 0:00:09.8]}
4. Nxe5 {[%clk 0:02:57.4]} 4... Nxe5 {[%clk 0:00:09.9]} 5. d4 {[%clk 0:02:57.7]}
5... Nc6 {[%clk 0:00:10.2]} 6. d5 {[%clk 0:02:57.8]} 6... Bb4 {[%clk 0:00:09.5]}
7. dxc6 {[%clk 0:02:57.7]} 7... bxc6 {[%clk 0:00:10.4]} 8. Bd2 {[%clk
0:02:57.5]} 8... d5 {[%clk 0:00:10.6]} 9. e5 {[%clk 0:02:55.5]} 9... Nd7 {[%clk
0:00:10.5]} 10. Qe2 {[%clk 0:02:55.6]} 10... O-O {[%clk 0:00:10.6]} 11. O-O-O
{[%clk 0:02:55.6]} 11... a5 {[%clk 0:00:11]} 12. f4 {[%clk 0:02:54.9]} 12... Ba6
{[%clk 0:00:11.9]} 13. Qg4 {[%clk 0:02:52.2]} 13... Nc5 {[%clk 0:00:11.5]} 14.
Bxa6 {[%clk 0:02:51.2]} 14... Rxa6 {[%clk 0:00:12.4]} 15. f5 {[%clk 0:02:50.9]}
15... Bxc3 {[%clk 0:00:12.5]} 16. Bxc3 {[%clk 0:02:50.4]} 16... Ne4 {[%clk
0:00:12.7]} 17. f6 {[%clk 0:02:36.7]} 17... g6 {[%clk 0:00:13]} 18. Qh4 {[%clk
0:02:29.6]} 18... h5 {[%clk 0:00:12.4]} 19. Bd4 {[%clk 0:02:02.8]} 19... Qd7
{[%clk 0:00:10.9]} 20. h3 {[%clk 0:02:01.5]} 20... Qf5 {[%clk 0:00:10.5]} 21.
Rhf1 {[%clk 0:01:58.4]} 21... Qg5+ {[%clk 0:00:10.4]} 22. Qxg5 {[%clk
0:01:57.1]} 22... Nxg5 {[%clk 0:00:11.3]} 23. b3 {[%clk 0:01:44.9]} 23... Ne6
{[%clk 0:00:11.6]} 24. Bb2 {[%clk 0:01:44.8]} 24... Kh7 {[%clk 0:00:11.9]} 25.
g4 {[%clk 0:01:43.9]} 25... hxg4 {[%clk 0:00:10.9]} 26. hxg4 {[%clk 0:01:44.8]}
26... g5 {[%clk 0:00:11.4]} 27. Rd3 {[%clk 0:01:40.1]} 27... Kg6 {[%clk
0:00:12.3]} 28. Rh3 {[%clk 0:01:38.4]} 28... Nf4 {[%clk 0:00:11.2]} 29. Rh2
{[%clk 0:01:34.9]} 29... Raa8 {[%clk 0:00:03.3]} 30. Rfh1 {[%clk 0:01:34.8]} 1-0

[Event "Late-Titled-Tuesday-Blitz-March-12-2024"]
[Site "Chess.com"]
[Date "2024.03.12"]
[Round "3"]
[White "Viktor_Poddubnyi"]
[Black "szachmistrz2500"]
[Result "0-1"]
[WhiteElo "2259"]
[BlackElo "2470"]
[TimeControl "180+1"]
[EndTime "14:25:44 PDT"]
[Termination "szachmistrz2500 won on time"]

1. e4 {[%clk 0:03:00]} 1... c5 {[%clk 0:02:59.4]} 2. Nf3 {[%clk 0:02:58.6]} 2...
d6 {[%clk 0:02:59.5]} 3. d4 {[%clk 0:02:58.8]} 3... cxd4 {[%clk 0:02:59.9]} 4.
Nxd4 {[%clk 0:02:59.7]} 4... Nf6 {[%clk 0:03:00.3]} 5. Nc3 {[%clk 0:03:00.1]}
5... a6 {[%clk 0:03:00.9]} 6. Bg5 {[%clk 0:03:00.1]} 6... e6 {[%clk 0:03:00.6]}
7. Qf3 {[%clk 0:03:00.2]} 7... Be7 {[%clk 0:02:55.1]} 8. g4 {[%clk 0:03:00.2]}
8... h6 {[%clk 0:02:53.9]} 9. Bd2 {[%clk 0:02:44.7]} 9... Qb6 {[%clk 0:02:51.2]}
10. Nb3 {[%clk 0:02:40.8]} 10... Nc6 {[%clk 0:02:51.3]} 11. O-O-O {[%clk
0:02:09.2]} 11... Ne5 {[%clk 0:02:49.6]} 12. Qg3 {[%clk 0:01:14.1]} 12... Nexg4
{[%clk 0:02:48.9]} 13. Be1 {[%clk 0:00:39.9]} 13... Bd7 {[%clk 0:02:43.5]} 14.
h3 {[%clk 0:00:36.9]} 14... Ne5 {[%clk 0:02:43.6]} 15. f4 {[%clk 0:00:26.2]}
15... Ng6 {[%clk 0:02:36.1]} 16. h4 {[%clk 0:00:25.8]} 16... h5 {[%clk
0:02:34.5]} 17. Bf2 {[%clk 0:00:25.2]} 17... Qc7 {[%clk 0:02:32.1]} 18. Bh3
{[%clk 0:00:23]} 18... O-O-O {[%clk 0:02:27.6]} 19. f5 {[%clk 0:00:23]} 19...
Ne5 {[%clk 0:02:21.6]} 20. fxe6 {[%clk 0:00:18.8]} 20... Bxe6 {[%clk 0:02:11.9]}
21. Nd5 {[%clk 0:00:18.6]} 21... Nxd5 {[%clk 0:02:09.1]} 22. exd5 {[%clk
0:00:18.3]} 22... Bg4 {[%clk 0:02:06.5]} 23. Bxg4+ {[%clk 0:00:14.4]} 23... Nxg4
{[%clk 0:02:06.2]} 24. Bd4 {[%clk 0:00:14.5]} 24... Kb8 {[%clk 0:01:55.1]} 25.
Bxg7 {[%clk 0:00:12.4]} 25... Rhg8 {[%clk 0:01:54.7]} 26. Bc3 {[%clk 0:00:12.4]}
26... Rc8 {[%clk 0:01:53.4]} 27. Nd4 {[%clk 0:00:11.6]} 27... Bf6 {[%clk
0:01:47.5]} 28. Rhf1 {[%clk 0:00:07.3]} 28... Be5 {[%clk 0:01:46.1]} 29. Qd3
{[%clk 0:00:04.1]} 29... Nh2 {[%clk 0:01:35.8]} 30. Rf5 {[%clk 0:00:04]} 30...
Rg3 {[%clk 0:01:36.1]} 0-1

[Event "Late-Titled-Tuesday-Blitz-March-12-2024"]
[Site "Chess.com"]
[Date "2024.03.12"]
[Round "3"]
[White "BardArtem"]
[Black "Fandorine"]
[Result "0-1"]
[WhiteElo "2737"]
[BlackElo "2956"]
[TimeControl "180+1"]
[EndTime "14:25:47 PDT"]
[Termination "Fandorine won by resignation"]

1. e4 {[%clk 0:03:00.9]} 1... c5 {[%clk 0:03:00.1]} 2. c3 {[%clk 0:02:56.3]}
2... d5 {[%clk 0:03:00]} 3. exd5 {[%clk 0:02:57.2]} 3... Nf6 {[%clk 0:03:00.6]}
4. Bb5+ {[%clk 0:02:46.3]} 4... Nbd7 {[%clk 0:02:59.4]} 5. Nf3 {[%clk
0:02:45.2]} 5... a6 {[%clk 0:02:57.4]} 6. Be2 {[%clk 0:02:39.8]} 6... Nxd5
{[%clk 0:02:57.1]} 7. O-O {[%clk 0:02:38.3]} 7... e6 {[%clk 0:02:52]} 8. d4
{[%clk 0:02:38.6]} 8... Be7 {[%clk 0:02:51.4]} 9. c4 {[%clk 0:02:38.2]} 9...
N5f6 {[%clk 0:02:51.6]} 10. Nc3 {[%clk 0:02:38.5]} 10... cxd4 {[%clk 0:02:51.3]}
11. Nxd4 {[%clk 0:02:38.5]} 11... O-O {[%clk 0:02:52]} 12. Be3 {[%clk
0:02:36.6]} 12... Qc7 {[%clk 0:02:51.4]} 13. h3 {[%clk 0:02:26.6]} 13... b6
{[%clk 0:02:50]} 14. Bf3 {[%clk 0:02:26.5]} 14... Bb7 {[%clk 0:02:50.4]} 15.
Bxb7 {[%clk 0:02:24]} 15... Qxb7 {[%clk 0:02:50.4]} 16. Qe2 {[%clk 0:02:22.7]}
16... Rac8 {[%clk 0:02:50.2]} 17. Rfd1 {[%clk 0:02:23]} 17... h6 {[%clk
0:02:49.2]} 18. Nf3 {[%clk 0:02:18.5]} 18... Rfd8 {[%clk 0:02:45.4]} 19. a3
{[%clk 0:02:14.9]} 19... Qc7 {[%clk 0:02:37.4]} 20. Rd4 {[%clk 0:01:47.9]} 20...
Bc5 {[%clk 0:02:25.5]} 21. Bf4 {[%clk 0:01:35.9]} 21... e5 {[%clk 0:01:41.1]}
22. Bxe5 {[%clk 0:01:11.7]} 22... Nxe5 {[%clk 0:01:40.6]} 23. Rxd8+ {[%clk
0:01:12.3]} 23... Rxd8 {[%clk 0:01:41.5]} 24. Qxe5 {[%clk 0:01:08.9]} 24... Qxe5
{[%clk 0:01:41.4]} 25. Nxe5 {[%clk 0:01:09.8]} 25... Rd2 {[%clk 0:01:41.5]} 26.
Nd1 {[%clk 0:01:10.4]} 26... Ne4 {[%clk 0:01:38]} 27. Ng4 {[%clk 0:01:02.3]}
27... h5 {[%clk 0:01:29.7]} 28. Nge3 {[%clk 0:00:46.3]} 28... Nxf2 {[%clk
0:01:25.7]} 29. Kf1 {[%clk 0:00:46.6]} 29... Ne4 {[%clk 0:01:13.2]} 30. b4
{[%clk 0:00:37.5]} 30... Bd4 {[%clk 0:01:01.1]} 31. Rc1 {[%clk 0:00:37.7]} 31...
Ng3+ {[%clk 0:00:58.6]} 32. Kg1 {[%clk 0:00:34.6]} 32... Ne2+ {[%clk 0:00:58.3]}
0-1

[Event "Late-Titled-Tuesday-Blitz-March-12-2024"]
[Site "Chess.com"]
[Date "2024.03.12"]
[Round "3"]
[White "Mikhail_Golubev"]
[Black "rasmussvane"]
[Result "0-1"]
[WhiteElo "2674"]
[BlackElo "2953"]
[TimeControl "180+1"]
[EndTime "14:25:55 PDT"]
[Termination "rasmussvane won by resignation"]

1. e4 {[%clk 0:03:00.9]} 1... c6 {[%clk 0:02:58.4]} 2. Nf3 {[%clk 0:02:57.3]}
2... d5 {[%clk 0:02:59.3]} 3. Nc3 {[%clk 0:02:57.3]} 3... a6 {[%clk 0:02:56.9]}
4. d4 {[%clk 0:02:52.2]} 4... Bg4 {[%clk 0:02:52.8]} 5. h3 {[%clk 0:02:49.4]}
5... Bh5 {[%clk 0:02:52.7]} 6. Be2 {[%clk 0:02:35.2]} 6... e6 {[%clk 0:02:51.8]}
7. O-O {[%clk 0:02:30.4]} 7... Nd7 {[%clk 0:02:43.7]} 8. Re1 {[%clk 0:02:22.6]}
8... Bb4 {[%clk 0:02:40.9]} 9. exd5 {[%clk 0:02:15.6]} 9... cxd5 {[%clk
0:02:40]} 10. Bg5 {[%clk 0:02:05.4]} 10... Ngf6 {[%clk 0:02:35.5]} 11. a3 {[%clk
0:01:56.1]} 11... Bxc3 {[%clk 0:02:34.3]} 12. bxc3 {[%clk 0:01:56.8]} 12... Qc7
{[%clk 0:02:32.2]} 13. g4 {[%clk 0:01:14.8]} 13... Bg6 {[%clk 0:02:31.5]} 14. c4
{[%clk 0:01:13.3]} 14... dxc4 {[%clk 0:02:30.8]} 15. Nh4 {[%clk 0:00:46.8]}
15... O-O {[%clk 0:02:25.9]} 16. Nxg6 {[%clk 0:00:44.6]} 16... hxg6 {[%clk
0:02:25.5]} 17. Bf3 {[%clk 0:00:42.9]} 17... Rfe8 {[%clk 0:02:05.9]} 18. Qd2
{[%clk 0:00:37.1]} 18... Rad8 {[%clk 0:02:02.3]} 19. h4 {[%clk 0:00:33.4]} 19...
e5 {[%clk 0:01:57.8]} 20. Rad1 {[%clk 0:00:19]} 20... b5 {[%clk 0:01:51]} 21. h5
{[%clk 0:00:14.8]} 21... e4 {[%clk 0:01:48.7]} 22. Bf4 {[%clk 0:00:13]} 22...
Qb6 {[%clk 0:01:42.8]} 23. Be2 {[%clk 0:00:12.3]} 23... Nd5 {[%clk 0:01:42.4]}
24. hxg6 {[%clk 0:00:10.9]} 24... Qxg6 {[%clk 0:01:42.2]} 25. g5 {[%clk
0:00:10.2]} 25... Nf8 {[%clk 0:01:39.9]} 26. Bg4 {[%clk 0:00:09.6]} 26... Ne6
{[%clk 0:01:39]} 27. Bxe6 {[%clk 0:00:08]} 27... Rxe6 {[%clk 0:01:24.8]} 28. c3
{[%clk 0:00:08.2]} 28... Qf5 {[%clk 0:01:24.6]} 29. Bg3 {[%clk 0:00:08.3]} 29...
Rg6 {[%clk 0:01:23.2]} 30. Kg2 {[%clk 0:00:07.1]} 30... Rxg5 {[%clk 0:01:21.9]}
31. Rh1 {[%clk 0:00:07.3]} 31... Qf3+ {[%clk 0:01:21.7]} 32. Kg1 {[%clk
0:00:06.9]} 32... e3 {[%clk 0:01:21.9]} 0-1

[Event "Late-Titled-Tuesday-Blitz-March-12-2024"]
[Site "Chess.com"]
[Date "2024.03.12"]
[Round "3"]
[White "Heydarli77"]
[Black "shirovin"]
[Result "1-0"]
[WhiteElo "2389"]
[BlackElo "2053"]
[TimeControl "180+1"]
[EndTime "14:25:55 PDT"]
[Termination "Heydarli77 won on time"]

1. d4 {[%clk 0:02:55.5]} 1... Nf6 {[%clk 0:02:53.2]} 2. Nf3 {[%clk 0:02:50.9]}
2... g6 {[%clk 0:02:52.3]} 3. b3 {[%clk 0:02:49.7]} 3... Bg7 {[%clk 0:02:47.1]}
4. Bb2 {[%clk 0:02:49.6]} 4... c5 {[%clk 0:02:47.1]} 5. dxc5 {[%clk 0:02:46.3]}
5... Na6 {[%clk 0:02:45.7]} 6. Nbd2 {[%clk 0:02:45.6]} 6... Nxc5 {[%clk
0:02:43.3]} 7. e3 {[%clk 0:02:44.5]} 7... O-O {[%clk 0:02:41]} 8. Be2 {[%clk
0:02:43.2]} 8... d6 {[%clk 0:02:40.3]} 9. O-O {[%clk 0:02:41]} 9... Bf5 {[%clk
0:02:39.4]} 10. Nd4 {[%clk 0:02:39.2]} 10... Bd7 {[%clk 0:02:37.1]} 11. Bf3
{[%clk 0:02:37.7]} 11... Qc7 {[%clk 0:02:32.6]} 12. c4 {[%clk 0:02:37.2]} 12...
a6 {[%clk 0:02:30]} 13. Qe2 {[%clk 0:02:34.4]} 13... Ne6 {[%clk 0:02:29.1]} 14.
Rac1 {[%clk 0:02:32.9]} 14... Nxd4 {[%clk 0:02:18.2]} 15. exd4 {[%clk
0:02:31.3]} 15... Bf5 {[%clk 0:02:12.6]} 16. Rfe1 {[%clk 0:01:52.6]} 16... Rfe8
{[%clk 0:02:11.3]} 17. h3 {[%clk 0:01:47.3]} 17... h5 {[%clk 0:02:01]} 18. Ne4
{[%clk 0:01:45.5]} 18... Nxe4 {[%clk 0:01:52.6]} 19. Bxe4 {[%clk 0:01:44.9]}
19... Bxe4 {[%clk 0:01:53.2]} 20. Qxe4 {[%clk 0:01:43.4]} 20... e5 {[%clk
0:01:42]} 21. dxe5 {[%clk 0:01:39.5]} 21... dxe5 {[%clk 0:01:31.1]} 22. Rcd1
{[%clk 0:01:38.6]} 22... f5 {[%clk 0:01:17.8]} 23. Qd5+ {[%clk 0:01:34.2]} 23...
Qf7 {[%clk 0:01:15.6]} 24. Qc5 {[%clk 0:01:31.4]} 24... e4 {[%clk 0:01:02.1]}
25. Bxg7 {[%clk 0:01:26.7]} 25... Qxg7 {[%clk 0:01:00.7]} 26. Rd6 {[%clk
0:01:26.1]} 26... Rad8 {[%clk 0:00:38.9]} 27. Qd5+ {[%clk 0:01:21.2]} 27... Kh7
{[%clk 0:00:04.5]} 28. Rxd8 {[%clk 0:01:16.3]} 1-0

[Event "Late-Titled-Tuesday-Blitz-March-12-2024"]
[Site "Chess.com"]
[Date "2024.03.12"]
[Round "3"]
[White "alexrustemov"]
[Black "Jospem"]
[Result "0-1"]
[WhiteElo "2855"]
[BlackElo "3121"]
[TimeControl "180+1"]
[EndTime "14:26:08 PDT"]
[Termination "Jospem won on time"]

1. d4 {[%clk 0:03:00.9]} 1... Nf6 {[%clk 0:03:00]} 2. c4 {[%clk 0:03:00.7]} 2...
e6 {[%clk 0:02:59.2]} 3. Nf3 {[%clk 0:03:00.4]} 3... Bb4+ {[%clk 0:02:59.9]} 4.
Bd2 {[%clk 0:03:00.7]} 4... c5 {[%clk 0:03:00.3]} 5. Bxb4 {[%clk 0:03:00.2]}
5... cxb4 {[%clk 0:03:01.2]} 6. g3 {[%clk 0:03:00.7]} 6... b6 {[%clk 0:03:01.4]}
7. Bg2 {[%clk 0:03:01]} 7... Bb7 {[%clk 0:03:02.1]} 8. O-O {[%clk 0:03:01.4]}
8... a5 {[%clk 0:03:02.8]} 9. Qd3 {[%clk 0:03:01.5]} 9... O-O {[%clk 0:03:01.4]}
10. Nbd2 {[%clk 0:03:01.9]} 10... d6 {[%clk 0:03:01.2]} 11. e4 {[%clk
0:03:01.7]} 11... h6 {[%clk 0:03:01.5]} 12. a3 {[%clk 0:02:50.5]} 12... bxa3
{[%clk 0:02:55.5]} 13. bxa3 {[%clk 0:02:40.6]} 13... Qc7 {[%clk 0:02:55.8]} 14.
Rab1 {[%clk 0:02:39.5]} 14... Nbd7 {[%clk 0:02:55.8]} 15. Rfc1 {[%clk
0:02:37.1]} 15... e5 {[%clk 0:02:55.4]} 16. Ne1 {[%clk 0:02:34.2]} 16... Rfe8
{[%clk 0:02:53.6]} 17. Nc2 {[%clk 0:02:33.7]} 17... Rac8 {[%clk 0:02:51.8]} 18.
f3 {[%clk 0:02:31.5]} 18... Nf8 {[%clk 0:02:45.9]} 19. Bh3 {[%clk 0:02:28.8]}
19... Rcd8 {[%clk 0:02:43.1]} 20. Qb3 {[%clk 0:02:26.2]} 20... N6d7 {[%clk
0:02:38.6]} 21. Bxd7 {[%clk 0:01:53.3]} 21... Nxd7 {[%clk 0:02:38.2]} 22. Qe3
{[%clk 0:01:39.3]} 22... Rf8 {[%clk 0:02:25]} 23. Kg2 {[%clk 0:01:30.7]} 23...
f5 {[%clk 0:02:23.2]} 24. d5 {[%clk 0:01:24.4]} 24... f4 {[%clk 0:02:17.8]} 25.
Qb3 {[%clk 0:01:22.3]} 25... fxg3 {[%clk 0:02:17.5]} 26. hxg3 {[%clk 0:01:22.1]}
26... Rf7 {[%clk 0:02:17.9]} 27. Ne1 {[%clk 0:01:20.7]} 27... Bc8 {[%clk
0:02:16.9]} 28. Qe3 {[%clk 0:01:19.1]} 28... Rdf8 {[%clk 0:02:16.6]} 29. Nd3
{[%clk 0:01:18.5]} 29... Nc5 {[%clk 0:02:12.5]} 30. Nxc5 {[%clk 0:01:16.8]}
30... bxc5 {[%clk 0:02:13.4]} 31. Rh1 {[%clk 0:01:07.8]} 31... Bd7 {[%clk
0:02:11.2]} 32. Rb2 {[%clk 0:01:04.4]} 32... Rf6 {[%clk 0:02:09.6]} 33. Rhb1
{[%clk 0:00:55.1]} 33... Bc8 {[%clk 0:02:09.8]} 34. Rb6 {[%clk 0:00:53.9]} 34...
Rg6 {[%clk 0:02:07]} 35. Rc6 {[%clk 0:00:50.3]} 35... Qd7 {[%clk 0:02:07.4]} 36.
Rh1 {[%clk 0:00:47.4]} 36... Qd8 {[%clk 0:01:51.9]} 37. Rb1 {[%clk 0:00:39.9]}
37... Qh4 {[%clk 0:01:47.8]} 38. Nf1 {[%clk 0:00:30.5]} 38... Qh3+ {[%clk
0:01:42.1]} 39. Kf2 {[%clk 0:00:30.4]} 39... Bg4 {[%clk 0:01:39.6]} 40. f4
{[%clk 0:00:30.7]} 40... Rgf6 {[%clk 0:01:34.6]} 41. f5 {[%clk 0:00:25.2]} 41...
Bxf5 {[%clk 0:01:34.4]} 42. exf5 {[%clk 0:00:02.8]} 42... Qxf5+ {[%clk
0:01:35.3]} 0-1

[Event "Late-Titled-Tuesday-Blitz-March-12-2024"]
[Site "Chess.com"]
[Date "2024.03.12"]
[Round "3"]
[White "AryanTari"]
[Black "Blitzstream"]
[Result "1/2-1/2"]
[WhiteElo "2934"]
[BlackElo "2734"]
[TimeControl "180+1"]
[EndTime "14:26:11 PDT"]
[Termination "Game drawn by repetition"]

1. e4 {[%clk 0:02:09.2]} 1... d5 {[%clk 0:02:58.7]} 2. d3 {[%clk 0:02:00.2]}
2... dxe4 {[%clk 0:02:58.7]} 3. dxe4 {[%clk 0:02:01.1]} 3... Qxd1+ {[%clk
0:02:59]} 4. Kxd1 {[%clk 0:02:01.3]} 4... Nc6 {[%clk 0:02:59.9]} 5. c3 {[%clk
0:02:00.8]} 5... f5 {[%clk 0:02:57.5]} 6. Bd3 {[%clk 0:01:53.6]} 6... g6 {[%clk
0:02:45.2]} 7. Nf3 {[%clk 0:01:49.4]} 7... Nf6 {[%clk 0:02:44.4]} 8. exf5 {[%clk
0:01:48.3]} 8... Bxf5 {[%clk 0:02:40]} 9. Bb5 {[%clk 0:01:36.9]} 9... O-O-O+
{[%clk 0:02:39.3]} 10. Ke2 {[%clk 0:01:36.8]} 10... e5 {[%clk 0:02:23.5]} 11.
Bg5 {[%clk 0:01:36.1]} 11... Bg7 {[%clk 0:02:13]} 12. Na3 {[%clk 0:01:27.3]}
12... a6 {[%clk 0:02:07.7]} 13. Bxc6 {[%clk 0:01:27.4]} 13... Bd3+ {[%clk
0:02:07.4]} 14. Ke1 {[%clk 0:01:25.7]} 14... bxc6 {[%clk 0:02:07]} 15. Rd1
{[%clk 0:01:16.2]} 15... Rhe8 {[%clk 0:01:51.8]} 16. Nd2 {[%clk 0:01:14.8]}
16... e4 {[%clk 0:01:39.3]} 17. Ndc4 {[%clk 0:01:13.2]} 17... Rd5 {[%clk
0:01:39.1]} 18. Bf4 {[%clk 0:01:05.8]} 18... g5 {[%clk 0:01:32.7]} 19. Be3
{[%clk 0:00:51.2]} 19... Ng4 {[%clk 0:01:21.7]} 20. h3 {[%clk 0:00:51.6]} 20...
Nxe3 {[%clk 0:01:21.4]} 21. Nxe3 {[%clk 0:00:52.5]} 21... Ra5 {[%clk 0:01:21.5]}
22. Kd2 {[%clk 0:00:36.8]} 22... Rd8 {[%clk 0:01:15.2]} 23. Rhe1 {[%clk
0:00:36.7]} 23... Bf8 {[%clk 0:01:08.2]} 24. Kc1 {[%clk 0:00:26.2]} 24... Rxa3
{[%clk 0:00:53.8]} 25. bxa3 {[%clk 0:00:27.1]} 25... Bxa3+ {[%clk 0:00:53.8]}
26. Kd2 {[%clk 0:00:27.8]} 26... Bb1+ {[%clk 0:00:30.1]} 27. Ke2 {[%clk
0:00:27.1]} 27... Bd3+ {[%clk 0:00:30.4]} 28. Kd2 {[%clk 0:00:27.4]} 28... Bb1+
{[%clk 0:00:30.6]} 29. Ke2 {[%clk 0:00:27.6]} 29... Bd3+ {[%clk 0:00:31.3]} 30.
Kd2 {[%clk 0:00:27.3]} 1/2-1/2

[Event "Late-Titled-Tuesday-Blitz-March-12-2024"]
[Site "Chess.com"]
[Date "2024.03.12"]
[Round "3"]
[White "Kopytkin"]
[Black "wannabe2700"]
[Result "0-1"]
[WhiteElo "2433"]
[BlackElo "2615"]
[TimeControl "180+1"]
[EndTime "14:26:11 PDT"]
[Termination "wannabe2700 won on time"]

1. e4 {[%clk 0:03:00.7]} 1... d5 {[%clk 0:02:58.4]} 2. d3 {[%clk 0:02:53.4]}
2... e5 {[%clk 0:02:56]} 3. Nd2 {[%clk 0:02:46.5]} 3... Nf6 {[%clk 0:02:54.8]}
4. Ngf3 {[%clk 0:02:41.2]} 4... Nc6 {[%clk 0:02:54.8]} 5. g3 {[%clk 0:02:39.4]}
5... Bc5 {[%clk 0:02:54.2]} 6. Bg2 {[%clk 0:02:39.5]} 6... O-O {[%clk
0:02:50.8]} 7. O-O {[%clk 0:02:39.1]} 7... Re8 {[%clk 0:02:47.6]} 8. c3 {[%clk
0:02:38.7]} 8... a5 {[%clk 0:02:43.1]} 9. a4 {[%clk 0:02:37.5]} 9... h6 {[%clk
0:02:17.4]} 10. Qe2 {[%clk 0:02:36.9]} 10... Be6 {[%clk 0:02:11.2]} 11. Re1
{[%clk 0:02:32.5]} 11... Qd7 {[%clk 0:02:09.5]} 12. Nh4 {[%clk 0:02:32.3]} 12...
Rad8 {[%clk 0:02:08.4]} 13. Bf1 {[%clk 0:02:05.7]} 13... Ng4 {[%clk 0:01:59.4]}
14. Nhf3 {[%clk 0:01:34]} 14... Bxf2+ {[%clk 0:01:55.8]} 15. Qxf2 {[%clk
0:01:34.1]} 15... Nxf2 {[%clk 0:01:55.6]} 16. Kxf2 {[%clk 0:01:34.4]} 16... f5
{[%clk 0:01:54.2]} 17. Kg1 {[%clk 0:01:07.7]} 17... g5 {[%clk 0:01:45.8]} 18.
Bg2 {[%clk 0:01:05.5]} 18... dxe4 {[%clk 0:01:43.5]} 19. dxe4 {[%clk 0:01:05.2]}
19... f4 {[%clk 0:01:44]} 20. gxf4 {[%clk 0:00:56.9]} 20... exf4 {[%clk
0:01:29.2]} 21. e5 {[%clk 0:00:54.4]} 21... Bf5 {[%clk 0:01:29.5]} 22. Nc4
{[%clk 0:00:48]} 22... Qd5 {[%clk 0:01:07.8]} 23. Nd4 {[%clk 0:00:41.4]} 23...
Qxc4 {[%clk 0:01:06.5]} 24. Nxf5 {[%clk 0:00:41.2]} 24... Rxe5 {[%clk
0:01:03.7]} 25. Rxe5 {[%clk 0:00:08]} 25... Rd1+ {[%clk 0:01:01.9]} 26. Kf2
{[%clk 0:00:05.7]} 26... Nxe5 {[%clk 0:01:01.8]} 0-1